Cogmind - Beta 13 X2 @@@ ROGUE MODE // 2023.12.31 @ 12:57:03 Player: kasaphescent Result: Destroyed by H-77 Assassin with Coil Gun Performance ------------- Evolutions (7) 3500 Regions Visited (17) 3400 Robots Destroyed (251) 1255 Value Destroyed (13442) 13442 Prototype IDs (11) 220 Alien Tech Used (0) 0 Bonus (9207) 9207 TOTAL SCORE: 31024 Bonus ------- High Alert Combat Kills 3825 Follower Combat Kills 1342 Entered Garrisons 1000 Used RIF Installer 3000 Entered DSFs 500 Friendly Fire -460 Cogmind --------- Core Integrity 0/1300 Matter 231/300 Energy 99/100 System Corruption 26% Temperature Cool (0) Movement Core (50) Location -3/Garrison Parts ------- > --- POWER (2) -------- (None) > --- PROPULSION (6) --- (None) > --- UTILITY (10) ----- Improved Hacking Suite > --- WEAPON (3) ------- (None) > --- INVENTORY (5) ---- Antimatter Reactor Improved Matter Neutralizer Heavy Mass Driver Enhanced Force Lance Peak State ------------ > --- POWER ------------ Reinforced Deuterium Engine Light Quantum Reactor > --- PROPULSION ------- Improved Heavy Treads Improved Heavy Treads > --- UTILITY ---------- Advanced Power Amplifier Advanced Cooling System Huge Storage Unit Improved Weapon Cycler Improved Transmission Jammer Improved Medium Armor Plating Improved Medium Armor Plating Relay Coupler [Grunt] > --- WEAPON ----------- PD Laser > --- INVENTORY -------- Improved Heavy Treads Improved Heavy Treads Advanced Cooling System Relay Coupler [NC] Relay Coupler [Swarmer] Relay Coupler [Grunt] Relay Coupler [Grunt] Relay Coupler [Sentry] Relay Coupler [Sentry] Relay Coupler [Sentry] Relay Coupler [Sentry] Relay Coupler [Heavy] Heavy Laser PD Laser Matter Neutralizer Heavy Mass Driver Precision Grenade Launcher Remote Datajack Remote Datajack Remote Datajack [Rating: 111] Favorites ----------- Power Light Quantum Reactor Engine Improved Deuterium Engine Power Core Neutrino Core Reactor Light Quantum Reactor Propulsion Light Treads Treads Light Treads Leg Flexi-carbon Leg Wheel Armored Wheel Hover Unit Improved Antigrav System Utility Huge Storage Unit Device Advanced Cooling System Storage Huge Storage Unit Processor Advanced Targeting Computer Hackware Relay Coupler [Grunt] Protection Layered Light Armor Plating Weapon Heavy Mass Driver Energy Gun Field Laser Energy Cannon Matter Neutralizer Ballistic Gun KE Penetrator Ballistic Cannon Heavy Mass Driver Launcher Precision Grenade Launcher Special Weapon Remote Datajack Impact Weapon Powered Hammer Special Melee Weapon Improved Datajack Build | -11 -10 -9 -8 -8 -8 -7 -7 -7 -7 -6 -6 -6 -6 -5 -4 -3 -3 ------- Run | Yrd Mat Mat Mat Gar Mat Fac Gar Fac Gar Fac Gar Fac DSF Fac Fac Res Gar Slots Evolved 14 | . . 2 2 . . 2 . . . 2 . . . 2 2 2 . Power 1 | . . . . . . . . . . . . . . 1 . . . Propulsion 4 | . . 2 . . . . . . . . . . . . . 2 . Utility 8 | . . . 2 . . 1 . . . 2 . . . 1 2 . . Weapon 1 | . . . . . . 1 . . . . . . . . . . . Parts Attached 328 | 5 7 19 11 54 11 19 32 13 22 3 50 . 3 44 16 19 . Power 28 | 1 1 3 . 4 . 4 1 . 3 . 1 . 1 6 3 . . Engine 14 | 1 . 3 . 1 . 3 1 . 1 . 1 . 1 1 1 . . Core 12 | . 1 . . 3 . 1 . . 1 . . . . 4 2 . . Reactor 2 | . . . . . . . . . 1 . . . . 1 . . . Propulsion 82 | 2 1 8 2 16 5 . 6 5 2 1 10 . . 11 7 6 . Treads 49 | 1 . 7 1 14 3 . 5 3 2 1 6 . . 6 . . . Leg 7 | . . . . . . . . . . . . . . 5 2 . . Wheel 23 | 1 1 1 1 2 2 . 1 2 . . 4 . . . 5 3 . Hover 3 | . . . . . . . . . . . . . . . . 3 . Flight . | . . . . . . . . . . . . . . . . . . Utility 81 | 1 1 2 8 7 2 2 8 2 4 2 17 . . 14 2 9 . Device 31 | . 1 . 3 2 1 1 1 1 . 2 6 . . 6 1 6 . Storage 4 | 1 . . 2 . 1 . . . . . . . . . . . . Processor 5 | . . . 2 . . . . . 1 . . . . 1 1 . . Hackware 19 | . . . . . . 1 4 1 . . 6 . . 4 . 3 . Protection 22 | . . 2 1 5 . . 3 . 3 . 5 . . 3 . . . Artifact . | . . . . . . . . . . . . . . . . . . Weapon 137 | 1 4 6 1 27 4 13 17 6 13 . 22 . 2 13 4 4 . Energy Gun 50 | . 3 5 1 9 . 8 9 3 1 . 4 . . 4 2 1 . Energy Cannon 7 | . . . . . . . . . 1 . . . . 2 1 3 . Ballistic Gun 14 | 1 . . . 5 2 1 . . 4 . . . . . 1 . . Ballistic Cannon 12 | . 1 . . . 1 1 . 1 3 . 2 . 1 2 . . . Launcher 17 | . . 1 . 5 . 1 2 1 2 . 2 . 1 2 . . . Special Weapon 10 | . . . . . . . . . . . 7 . . 3 . . . Impact Weapon 17 | . . . . 5 1 . 2 . 2 . 7 . . . . . . Slashing Weapon . | . . . . . . . . . . . . . . . . . . Piercing Weapon . | . . . . . . . . . . . . . . . . . . Special Melee Weapon 10 | . . . . 3 . 2 4 1 . . . . . . . . . Unidentified Prototypes 11 | . . 1 1 . . 6 . 1 . . . . . 1 . 1 . Corrupted Parts 7 | . . . . 1 2 . . . . . 4 . . . . . . System Corruption 47 | . . . . 1 22 . . . . . 24 . . . . . . Parts Lost 90 | . . 3 1 12 . . 7 2 5 3 11 . . 27 . 19 . Power 12 | . . 2 . 1 . . . . 1 . 1 . . 5 . 2 . Propulsion 28 | . . . . 5 . . 3 1 1 . 2 . . 8 . 8 . Utility 34 | . . 1 1 3 . . 1 . 2 3 5 . . 11 . 7 . Weapon 16 | . . . . 3 . . 3 1 1 . 3 . . 3 . 2 . Highest Loss Streak 13 | . . 1 1 9 . . 2 1 3 3 5 . . 9 . 13 . To Critical Strikes . | . . . . . . . . . . . . . . . . . . Average Slot Usage (%) 85 | . 96 93 99 92 90 91 94 98 79 76 84 80 80 71 42 44 4 Engine 3 | . 2 2 9 3 . 3 7 7 2 . 3 6 6 3 3 . . Core 2 | . 11 2 . 5 9 3 . . 1 . . . . 1 1 4 . Reactor 1 | . . . . . . . . . 2 6 2 . . 2 . . . Treads 15 | . 14 25 18 28 36 15 15 14 5 10 11 13 13 9 2 . . Wheel 9 | . 14 18 18 7 . 15 14 15 9 1 6 . . . 14 11 . Device 12 | . 11 4 14 12 8 13 8 14 7 16 18 20 20 18 2 10 . Storage 7 | . 14 11 9 9 9 7 7 7 7 6 6 6 6 4 . . . Processor 2 | . . . 4 . . . . . 4 6 6 6 6 2 5 3 . Hackware 3 | . . . . . . 1 7 7 1 . 7 6 6 8 . . 4 Protection 7 | . . 6 7 7 9 7 8 7 16 12 5 6 6 3 . . . Energy Gun 8 | . 13 21 18 11 6 7 19 19 2 . 2 . . 2 4 4 . Ballistic Gun 1 | . 12 . . 1 8 7 1 . . . . . . . . 1 . Ballistic Cannon 2 | . 1 . . . 2 5 . 1 6 6 5 6 6 . . . . Impact Weapon 2 | . . . . 4 . . . . 5 6 3 6 6 . . . . Naked Turns 1 | . . . . . . . . . . . . . . 1 . . . Heaviest Build 164 | 10 17 22 59 84 130 134 125 111 147 133 146 136 142 164 29 44 . Greatest Support 150 | 10 16 28 28 88 80 24 24 50 70 98 150 150 150 150 58 68 3 Greatest Overweight (x) 10 | . 1 1 2 3 5 5 10 9 5 4 10 . . 5 . 4 . Average Overweight (x) 2 | . . . 1 1 1 5 4 3 2 2 2 . . . . . . Largest Inventory Capacity 25 | 8 8 8 20 20 25 25 25 25 25 25 25 25 25 25 5 5 5 Average Capacity 21 | 6 8 8 14 20 23 25 25 25 25 25 25 25 25 24 5 5 5 Most Carried 25 | 7 8 8 15 20 24 25 25 25 25 25 25 25 25 25 5 5 5 Average Carried 20 | 3 7 7 9 19 21 24 22 24 24 24 23 25 24 19 4 4 5 Final Capacity 25 | 8 8 8 20 20 25 25 25 25 25 25 25 25 25 5 5 5 5 Final Carried 25 | 7 8 8 15 20 24 24 25 25 25 24 25 25 25 5 5 5 5 Class Distribution -------------------- 23% | Bothacker-Tank 20% | Mutant 20% | Bothacker-Mutant 12% | Botlord-Mutant 11% | Botlord-Gunner 4% | Scavenger-Mutant Dominant Class ---------------- Mutant | -10/Materials Mutant | -9/Materials Mutant | -8/Materials Mutant | -8/Garrison Bothacker-Mutant | -8/Materials Bothacker-Tank | -7/Factory Bothacker-Tank | -7/Garrison Bothacker-Tank | -7/Factory Bothacker-Mutant | -7/Garrison Bothacker-Mutant | -6/Factory Botlord-Mutant | -6/Garrison Botlord-Mutant | -6/Factory Botlord-Mutant | -6/DSF Botlord-Gunner | -5/Factory Scavenger-Mutant | -4/Factory Scavenger-Skirmisher | -3/Research Mutant | -3/Garrison Resources | -11 -10 -9 -8 -8 -8 -7 -7 -7 -7 -6 -6 -6 -6 -5 -4 -3 -3 ----------- Run | Yrd Mat Mat Mat Gar Mat Fac Gar Fac Gar Fac Gar Fac DSF Fac Fac Res Gar Matter Collected 6172 | 185 205 220 120 718 151 464 517 237 957 38 1244 . 174 623 160 159 . Remotely . | . . . . . . . . . . . . . . . . . . Salvage Created 10532 | . 247 757 588 1993 . 398 1376 458 1079 43 1436 . 138 1514 230 275 . Parts 515 | . 17 31 24 109 . 28 53 22 48 1 47 . 15 86 19 15 . Haulers Intercepted 5 | . . 2 2 . . . . 1 . . . . . . . . . Recyclers Shooed 4 | . . . . . . . . . . . . . . 3 . 1 . Parts Field Recycled . | . . . . . . . . . . . . . . . . . . Retrieved Matter . | . . . . . . . . . . . . . . . . . . Parts Self-Destructed . | . . . . . . . . . . . . . . . . . . Prevented . | . . . . . . . . . . . . . . . . . . Kills | -11 -10 -9 -8 -8 -8 -7 -7 -7 -7 -6 -6 -6 -6 -5 -4 -3 -3 ------- Run | Yrd Mat Mat Mat Gar Mat Fac Gar Fac Gar Fac Gar Fac DSF Fac Fac Res Gar Combat Hostiles Destroyed 224 | . 8 15 12 39 . 8 37 11 31 1 16 . 4 34 4 4 . Melee 1 | . . . . 1 . . . . . . . . . . . . . Guns 120 | . 8 9 11 27 . 3 31 5 4 . . . . 17 4 1 . Cannons 56 | . . . . . . 5 . 1 23 1 13 . 3 8 . 2 . AOE 40 | . . 3 . 9 . . 6 5 4 . 3 . 1 9 . . . Classes Destroyed 19 | . 2 6 . 4 . 2 1 1 . . . . 1 2 . . . Worker 5 | . . 1 . . . . . 2 . . . . . 2 . . . Builder 2 | . . . . . . . . . . . . . . 2 . . . Tunneler 4 | . . . . . . 1 . . . 1 . . . . 2 . . Hauler 5 | . . 2 2 . . . . 1 . . . . . . . . . Recycler 3 | . . 1 1 . . . . . . . . . . . 1 . . Mechanic 1 | . . . . . . . . . . . . . . 1 . . . Operator 3 | . . . . . . 1 . . . 1 . . . 1 . . . Watcher 3 | . . 1 1 . . 1 . . . . . . . . . . . Swarmer 54 | . 3 . 7 8 . . 8 3 7 . 5 . 2 7 4 . . Saboteur 1 | . . . . . . . 1 . . . . . . . . . . Grunt 80 | . 5 8 2 15 . 4 15 3 9 1 8 . . 8 . 2 . Brawler 5 | . . 2 . 1 . . 1 . . . 1 . . . . . . Duelist 10 | . . . . 2 . 1 6 1 . . . . . . . . . Protector 1 | . . . . . . . . 1 . . . . . . . . . Sentry 28 | . . 5 3 8 . . 3 1 5 . . . . 3 . . . Specialist 11 | . . . . 1 . . 2 2 . . 2 . 1 3 . . . Hunter 18 | . . . . 1 . . 1 1 4 . . . . 11 . . . Programmer 12 | . . . . 3 . 2 . . 4 . . . . 1 . 2 . Heavy 2 | . . . . . . . . . . . . . 1 1 . . . Thug 1 | . . . . . . . . . 1 . . . . . . . . Savage 1 | . . . . . . 1 . . . . . . . . . . . Guerrilla 1 | . . . . . . . . . 1 . . . . . . . . Best Kill Streak 10 | . 3 6 6 4 . 4 7 5 4 1 4 . 2 10 4 1 . Combat Bots Only 9 | . 3 4 5 4 . 4 7 4 4 1 4 . 2 9 4 1 . Max Kills in Single Turn 5 | . 1 2 2 3 . 1 2 5 2 1 2 . 1 2 1 1 . Gunslinging 1 | . . . 1 . . . 1 1 1 . . . . . . . . Exploded 3 | . . 1 . 3 . . 2 3 2 . 2 . 1 2 . . . Melee 1 | . . . . 1 . . . . . . . . . . . . . Uniques/NPCs Destroyed . | . . . . . . . . . . . . . . . . . . Combat | -11 -10 -9 -8 -8 -8 -7 -7 -7 -7 -6 -6 -6 -6 -5 -4 -3 -3 -------- Run | Yrd Mat Mat Mat Gar Mat Fac Gar Fac Gar Fac Gar Fac DSF Fac Fac Res Gar Hostile Shots Fired 1941 | . 40 84 56 244 13 25 252 49 261 84 127 . 34 481 9 177 5 Missed 576 | . 9 23 16 60 6 4 82 10 89 35 40 . 3 123 4 69 3 Damage Taken 20884 | . 332 802 450 2718 104 270 2362 805 1630 490 1592 . 454 6070 77 2691 37 Core 3309 | . 48 186 53 245 . 18 276 93 179 26 167 . 11 673 14 1283 37 Absorbed by Shields 198 | . . . . 31 . . 35 . 100 . . . . . . 32 . Reduced by Siege Mode 383 | . . . . . . . . . 20 . 20 . 41 302 . . . Ignored by Resistances 306 | . . . . . . . . . 76 . . . 135 95 . . . Core Remaining (%) 62 | 100 80 53 . . 45 . . . 19 . . . 76 32 98 . . Volleys Fired 770 | . 30 56 35 95 7 30 74 30 87 7 191 . 10 46 21 51 . Largest 3 | . 2 2 2 2 2 3 3 3 3 1 2 . 1 2 1 2 . Hottest 199 | . 60 130 126 126 96 165 199 187 186 75 144 . 75 186 105 117 . Shots Fired 1273 | . 58 110 70 180 14 77 185 48 121 7 195 . 10 120 21 57 . Gun 983 | . 58 108 70 176 12 54 176 34 30 . 136 . . 72 18 39 . Cannon 224 | . . . . . 2 23 . 10 89 7 37 . 8 27 3 18 . Launcher 36 | . . 2 . 4 . . 9 4 2 . 3 . 2 10 . . . Special 30 | . . . . . . . . . . . 19 . . 11 . . . Kinetic 290 | . 30 . . 26 10 52 18 10 79 7 37 . 8 7 . 6 . Thermal 812 | . 28 108 70 94 4 25 158 34 26 . 103 . . 92 21 49 . Explosive 36 | . . 2 . 4 . . 9 4 2 . 3 . 2 10 . . . Electromagnetic 105 | . . . . 56 . . . . 14 . 33 . . . . 2 . Robot Hit Streak 31 | . 12 21 18 21 5 9 15 19 18 4 31 . 16 20 8 10 . Robot Miss Streak 18 | . 3 4 2 3 2 4 7 2 2 1 2 . 2 18 1 5 . Penetration Max 1 | . . . . 1 1 . . . . . . . . . . . . Secondary Targets 23 | . 1 2 2 4 . . 12 1 1 . . . . . . . . Max Gunslinging Chain 1 | . 1 1 1 1 . . 1 1 1 . . . . . . . . Capacitor 43 | . . . . . . . . . . . . . . . . 43 . Autonomous 80 | . . . . . . . . . . . . . . 80 . . . Shots Hit Robots 977 | . 36 77 54 155 8 51 163 38 81 7 171 . 5 88 14 29 . Core Hits 565 | . 14 30 21 78 2 35 126 35 38 1 65 . 7 96 8 9 . Critical Kills 5 | . . . . 1 . 4 . . . . . . . . . . . Critical Parts Destroyed 13 | . . . . 3 2 6 1 . 1 . . . . . . . . Critical Strikes 59 | . . 6 3 9 2 11 4 2 14 . 7 . . . 1 . . Burn 25 | . . 6 3 4 . 1 3 2 2 . 3 . . . 1 . . Destroy 14 | . . . . 1 2 10 1 . . . . . . . . . . Blast 15 | . . . . . . . . . 11 . 4 . . . . . . Smash 5 | . . . . 4 . . . . 1 . . . . . . . . Melee Attacks 123 | . . . . 56 1 3 31 2 14 4 12 . . . . . . Impact 77 | . . . . 43 1 . 3 . 14 4 12 . . . . . . Slashing . | . . . . . . . . . . . . . . . . . . Piercing . | . . . . . . . . . . . . . . . . . . Sneak Attacks 40 | . . . . 12 . 2 24 1 . 1 . . . . . . . Combat Hostiles 2 | . . . . . . 1 1 . . . . . . . . . . Follow-up Attacks . | . . . . . . . . . . . . . . . . . . Damage Inflicted 32685 | . 437 1855 927 4231 265 1130 3785 2120 3806 466 4648 . 515 7173 336 991 . Guns 15976 | . 437 1152 927 2776 238 822 2671 465 297 . 2243 . . 2978 336 634 . Cannons 7870 | . . . . . 27 308 . 153 3135 408 2107 . 310 1071 . 351 . Explosions 8053 | . . 703 . 872 . . 1114 1502 248 . 298 . 205 3111 . . . Melee 767 | . . . . 583 . . . . 126 58 . . . . . . . Ramming 19 | . . . . . . . . . . . . . . 13 . 6 . Kinetic 8296 | . 228 . . 591 213 685 294 153 2845 408 2107 . 310 387 . 75 . Thermal 15308 | . 209 1152 927 1509 52 445 2377 465 246 . 1935 . . 4832 336 823 . Explosive 6601 | . . 703 . 590 . . 1114 1502 248 . 298 . 205 1941 . . . Electromagnetic 1694 | . . . . 958 . . . . 341 . 308 . . . . 87 . Impact 767 | . . . . 583 . . . . 126 58 . . . . . . . Slashing . | . . . . . . . . . . . . . . . . . . Piercing . | . . . . . . . . . . . . . . . . . . Highest Corruption 33 | . 5 . . 1 23 . . . 4 . 32 32 33 6 . 26 26 Average Corruption 11 | . 2 . . 1 1 . . . 2 . 31 32 32 3 . 15 26 Corruption Purged . | . . . . . . . . . . . . . . . . . . Corruption Blocked . | . . . . . . . . . . . . . . . . . . Effects 213 | . 1 . . 18 9 . . . 32 . 111 1 15 9 . 15 2 Message Errors 52 | . . . . 6 2 . . . 10 . 23 . 3 3 . 4 1 Matter Fused 53 | . . . . 7 2 . . . 7 . 21 . 4 5 . 6 1 Heat Flow Errors 26 | . 1 . . 2 1 . . . 1 . 17 . 2 . . 2 . Energy Discharges 21 | . . . . . . . . . 4 . 11 . 4 1 . 1 . Parts Rejected 1 | . . . . . . . . . 1 . . . . . . . . Parts Fused 3 | . . . . . 1 . . . . . 2 . . . . . . Data Loss (minor) 26 | . . . . 2 2 . . . 3 . 17 1 1 . . . . Data Loss (major) 11 | . . . . . . . . . 4 . 6 . 1 . . . . Misfires 6 | . . . . 1 1 . . . 2 . 2 . . . . . . Alerts 2 | . . . . . . . . . . . 1 . . . . 1 . Misdirections 2 | . . . . . . . . . . . 1 . . . . 1 . Weapon Failures 10 | . . . . . . . . . . . 10 . . . . . . Overload Shots . | . . . . . . . . . . . . . . . . . . Overflow Damage 1098 | . . 57 . 290 . . 26 11 280 147 130 . . 136 . 21 . Projectiles 445 | . . . . . . . . . 149 129 130 . . 16 . 21 . Explosions 267 | . . 57 . 48 . . 26 11 5 . . . . 120 . . . Melee 386 | . . . . 242 . . . . 126 18 . . . . . . . Knockbacks 31 | . . . . 2 . 2 . 1 10 3 10 . 1 2 . . . Impact 3 | . . . . 2 . . . . 1 . . . . . . . . Kinetic 27 | . . . . . . 2 . 1 9 3 9 . 1 2 . . . Secondary 1 | . . . . . . . . . . . 1 . . . . . . Self-Inflicted Damage 180 | . . 5 . 60 . . . 57 3 . . . 52 . . 3 . Shots 7 | . . 1 . 2 . . . 2 1 . . . 1 . . . . Rammed 2 | . . . . . . . . . . . . . . 1 . 1 . Targets Rammed 2 | . . . . . . . . . . . . . . 1 . 1 . Kicked . | . . . . . . . . . . . . . . . . . . Crushed . | . . . . . . . . . . . . . . . . . . Highest Temperature 532 | . 123 306 51 199 75 294 313 42 162 . 419 . 240 532 159 500 . Average Temperature 85 | . 47 58 11 41 34 92 78 28 27 . 92 . 55 90 57 197 . Received Heat Transfer 4896 | . 126 342 144 888 81 102 609 72 394 114 963 . 9 933 . 119 . Effects 19 | . . . . . . 1 1 . . . 3 . . 6 . 8 . Shutdowns 5 | . . . . . . . . . . . 1 . . 1 . 3 . Energy Bleed 1 | . . . . . . . . . . . 1 . . . . . . Interference 2 | . . . . . . 1 1 . . . . . . . . . . Matter Decay 1 | . . . . . . . . . . . 1 . . . . . . Short Circuit 1 | . . . . . . . . . . . . . . 1 . . . Damage (minor) 2 | . . . . . . . . . . . . . . . . 2 . Damage (major) 7 | . . . . . . . . . . . . . . 4 . 3 . Siege Activations 7 | . . . . . . . . . 2 . 1 . 1 3 . . . Total Turns 103 | . . . . . . . . . 29 . 18 . 16 40 . . . Longest Duration 23 | . . . . . . . . . 23 . 18 . 16 19 . . . Robots Corrupted 4 | . . . . 1 . . . . . . 2 . . . . 1 . Combat Hostiles 2 | . . . . 1 . . . . . . . . . . . 1 . Parts Fried 23 | . . . . 12 . . . . 5 4 . . . . . 2 . Impact Corruptions 8 | . . . . 5 . . . . 2 1 . . . . . . . Robots Melted 4 | . . 3 1 . . . . . . . . . . . . . . Combat Hostiles 4 | . . 3 1 . . . . . . . . . . . . . . Parts Melted 44 | . 1 7 10 3 . 2 4 3 2 . 2 . . 8 1 1 . Heat Transferred 24153 | . 475 3330 2220 2538 111 612 3694 928 629 . 3959 . . 4140 592 925 . Parts Sabotaged . | . . . . . . . . . . . . . . . . . . Parts Stolen . | . . . . . . . . . . . . . . . . . . Parts Stripped . | . . . . . . . . . . . . . . . . . . Power Chain Reactions 4 | . . . . 4 . . . . . . . . . . . . . Missiles Intercepted . | . . . . . . . . . . . . . . . . . . Alert | -11 -10 -9 -8 -8 -8 -7 -7 -7 -7 -6 -6 -6 -6 -5 -4 -3 -3 ------- Run | Yrd Mat Mat Mat Gar Mat Fac Gar Fac Gar Fac Gar Fac DSF Fac Fac Res Gar Peak Influence 2206 | . 231 680 497 1990 1034 355 1243 854 2206 1245 1848 970 895 879 416 284 73 Initial 1157 | . . 97 249 273 969 301 160 652 597 1157 718 970 682 469 318 218 61 Average 872 | . 131 425 361 1134 772 224 781 660 1377 1201 1260 970 797 701 343 198 61 Maximum Alert Level 5 | . 1 2 2 5 3 1 4 3 5 4 5 3 3 3 2 1 . Low Security (%) 7 | 100 58 14 . . . 48 4 . . . . . . . . 34 100 Level 1 14 | . 41 28 56 6 . 51 14 . . . . . . . 83 65 . Level 2 20 | . . 56 43 16 56 . 26 73 7 . . . 10 51 16 . . Level 3 23 | . . . . 27 43 . 23 26 25 4 31 100 89 48 . . . Level 4 22 | . . . . 29 . . 30 . 33 95 48 . . . . . . Level 5 10 | . . . . 19 . . . . 33 . 19 . . . . . . High Security . | . . . . . . . . . . . . . . . . . . Max Security . | . . . . . . . . . . . . . . . . . . Sterilizations 1 | . . . . . . . . . . . . . 1 . . . . Squads Dispatched 28 | . 2 3 1 . 2 4 . 3 . 1 . . 1 8 . 3 . Investigation 4 | . . . 1 . 1 1 . . . . . . . 1 . . . Extermination 4 | . . . . . . 2 . . . . . . . 1 . 1 . Reinforcement 14 | . 2 3 . . 1 1 . 1 . . . . 1 3 . 2 . Assault 5 | . . . . . . . . 2 . 1 . . . 2 . . . Garrison 1 | . . . . . . . . . . . . . . 1 . . . Intercept . | . . . . . . . . . . . . . . . . . . Searches Triggered . | . . . . . . . . . . . . . . . . . . Construction Impeded . | . . . . . . . . . . . . . . . . . . Haulers Reinforced 2 | . . . . . . . . . . . . . . 1 . 1 . Active Scanning Responses . | . . . . . . . . . . . . . . . . . . Cargo Convoy Interrupts 1 | . . . . . . . . . . . . . . 1 . . . Stealth | -11 -10 -9 -8 -8 -8 -7 -7 -7 -7 -6 -6 -6 -6 -5 -4 -3 -3 --------- Run | Yrd Mat Mat Mat Gar Mat Fac Gar Fac Gar Fac Gar Fac DSF Fac Fac Res Gar Distress Signals 7 | . 2 2 1 . . . . . . 1 . . . 1 . . . Communications Jammed 38 | . . . . . . . . . . . . . . 38 . . . Distress Signals 34 | . . . . . . . . . . . . . . 34 . . . Times Spotted 375 | . 15 26 13 37 13 15 44 25 36 6 29 . 6 72 4 31 3 Peak Tracking Total 13 | . 6 7 4 5 4 4 10 6 4 5 7 . 4 11 4 13 . Tactical Retreats 16 | . . . . 3 . 1 2 . 3 . 2 . . 1 . 4 . Traps | -11 -10 -9 -8 -8 -8 -7 -7 -7 -7 -6 -6 -6 -6 -5 -4 -3 -3 ------- Run | Yrd Mat Mat Mat Gar Mat Fac Gar Fac Gar Fac Gar Fac DSF Fac Fac Res Gar Traps Triggered 47 | . 3 1 . 12 . . 3 1 12 1 9 . . 1 . 4 . Indirectly . | . . . . . . . . . . . . . . . . . . Trap Hack Attempts . | . . . . . . . . . . . . . . . . . . Triggered . | . . . . . . . . . . . . . . . . . . Disarmed . | . . . . . . . . . . . . . . . . . . Reprogrammed . | . . . . . . . . . . . . . . . . . . Reused . | . . . . . . . . . . . . . . . . . . Traps Extracted . | . . . . . . . . . . . . . . . . . . Installed . | . . . . . . . . . . . . . . . . . . Triggered . | . . . . . . . . . . . . . . . . . . Most Traps Carried 2 | . . . . 2 . . . . . . . . . . . . . Machines | -11 -10 -9 -8 -8 -8 -7 -7 -7 -7 -6 -6 -6 -6 -5 -4 -3 -3 ---------- Run | Yrd Mat Mat Mat Gar Mat Fac Gar Fac Gar Fac Gar Fac DSF Fac Fac Res Gar Machines Disabled 53 | . . 4 1 9 1 1 2 4 10 1 7 . . 12 . 1 . Max in Single Turn 4 | . . 2 1 1 . 1 1 2 2 . 1 . . 4 . 1 . Garrison Access 2 | . . . . . . . . . . . . . . 1 1 . . Garrison Relay 16 | . . . . 5 . . 2 . 5 . 4 . . . . . . Phase Generator 1 | . . . . . . . . . 1 . . . . . . . . Machines Repaired . | . . . . . . . . . . . . . . . . . . Machines Dismantled . | . . . . . . . . . . . . . . . . . . Machines Sabotaged . | . . . . . . . . . . . . . . . . . . Overloaded Fab Kills . | . . . . . . . . . . . . . . . . . . Hacking | -11 -10 -9 -8 -8 -8 -7 -7 -7 -7 -6 -6 -6 -6 -5 -4 -3 -3 --------- Run | Yrd Mat Mat Mat Gar Mat Fac Gar Fac Gar Fac Gar Fac DSF Fac Fac Res Gar Machines Accessed 49 | . 1 1 6 4 4 8 3 4 3 3 2 1 . 6 2 1 . Terminals 32 | . . . 5 4 4 3 3 2 3 1 2 1 . 4 . . . Fabricators 2 | . . . . . . 1 . . . . . . . 1 . . . Repair Stations 1 | . . . . . . . . . . 1 . . . . . . . Recycling Units 7 | . 1 1 . . . 3 . 1 . . . . . . 1 . . Scanalyzers . | . . . . . . . . . . . . . . . . . . Garrison Access 7 | . . . 1 . . 1 . 1 . 1 . . . 1 1 1 . Total Hacks 111 | . 1 3 17 5 13 15 4 8 7 6 7 2 . 19 3 1 . Successful 46 | . 1 1 5 4 8 6 2 4 2 3 . 1 . 6 2 1 . Failed 65 | . . 2 12 1 5 9 2 4 5 3 7 1 . 13 1 . . Catastrophic 13 | . . . 2 . . 3 . 1 2 1 1 . . 3 . . . Database Lockouts . | . . . . . . . . . . . . . . . . . . Manual 51 | . . . 11 . 12 7 . 5 . 2 . . . 14 . . . Terminals 84 | . . . 14 5 13 6 4 6 7 3 7 2 . 17 . . . Fabricators 3 | . . . . . . 2 . . . . . . . 1 . . . Repair Stations 2 | . . . . . . . . . . 2 . . . . . . . Recycling Units 13 | . 1 3 . . . 6 . 1 . . . . . . 2 . . Scanalyzers . | . . . . . . . . . . . . . . . . . . Garrison Access 9 | . . . 3 . . 1 . 1 . 1 . . . 1 1 1 . Terminal Hacks 15 | . . . 1 4 4 . 2 . 2 . . 1 . 1 . . . Open Door 1 | . . . . 1 . . . . . . . . . . . . . Open DSF 1 | . . . . . . . . . . . . 1 . . . . . Emergency Access Points 2 | . . . . 1 . . . . 1 . . . . . . . . Alert Level 1 | . . . . . 1 . . . . . . . . . . . . Unreport Threat 4 | . . . . . 3 . . . . . . . . 1 . . . Zone Layout 1 | . . . 1 . . . . . . . . . . . . . . Garrison Registry 1 | . . . . . . . 1 . . . . . . . . . . Patrol Navigation 3 | . . . . 1 . . 1 . 1 . . . . . . . . Security Stations 1 | . . . . 1 . . . . . . . . . . . . . Fabricator Hacks 1 | . . . . . . 1 . . . . . . . . . . . Build 1 | . . . . . . 1 . . . . . . . . . . . Repair Station Hacks 1 | . . . . . . . . . . 1 . . . . . . . Scan Component 1 | . . . . . . . . . . 1 . . . . . . . Recycling Unit Hacks 6 | . 1 1 . . . 2 . 1 . . . . . . 1 . . Report Inventory 6 | . 1 1 . . . 2 . 1 . . . . . . 1 . . Scanalyzer . | . . . . . . . . . . . . . . . . . . Garrison Access Hacks 7 | . . . 1 . . 1 . 1 . 1 . . . 1 1 1 . Unlock Access 5 | . . . 1 . . 1 . 1 . 1 . . . . . 1 . Seal Access 2 | . . . . . . . . . . . . . . 1 1 . . Unauthorized Hacks 16 | . . . 3 . 4 2 . 2 . 1 . . . 4 . . . Terminals 15 | . . . 3 . 4 1 . 2 . 1 . . . 4 . . . Botnet 15 | . . . 3 . 4 1 . 2 . 1 . . . 4 . . . Fabricators 1 | . . . . . . 1 . . . . . . . . . . . Prioritize 1 | . . . . . . 1 . . . . . . . . . . . Repair Stations . | . . . . . . . . . . . . . . . . . . Recycling Units . | . . . . . . . . . . . . . . . . . . Scanalyzers . | . . . . . . . . . . . . . . . . . . Garrison Access . | . . . . . . . . . . . . . . . . . . Data Cores Recovered 3 | . . . . . . . . . . 2 . . . 1 . . . Used 1 | . . . . . . . . . . . . . . 1 . . . Hacking Detections 45 | . 1 1 6 3 4 8 3 4 3 2 2 1 . 5 1 1 . Full Trace Events 7 | . . . 1 . . 1 1 . 2 . 1 . . 1 . . . Feedback Events 1 | . . . . . . . . . 1 . . . . . . . . Corruption 1 | . . . . . . . . . 1 . . . . . . . . Feedback Blocked . | . . . . . . . . . . . . . . . . . . Robot Schematics Acquired . | . . . . . . . . . . . . . . . . . . Robots Built 3 | . . . . . . 3 . . . . . . . . . . . Authchips . | . . . . . . . . . . . . . . . . . . Time 99 | . . . . . . 99 . . . . . . . . . . . Total Robot Build Rating 6 | . . . . . . 6 . . . . . . . . . . . Part Schematics Acquired . | . . . . . . . . . . . . . . . . . . Parts Built . | . . . . . . . . . . . . . . . . . . Authchips . | . . . . . . . . . . . . . . . . . . Time . | . . . . . . . . . . . . . . . . . . Total Part Build Rating . | . . . . . . . . . . . . . . . . . . Parts Repaired . | . . . . . . . . . . . . . . . . . . Time . | . . . . . . . . . . . . . . . . . . Parts Recycled . | . . . . . . . . . . . . . . . . . . Recycled Matter . | . . . . . . . . . . . . . . . . . . Retrieved Matter . | . . . . . . . . . . . . . . . . . . Retrieved Components . | . . . . . . . . . . . . . . . . . . Parts Scanalyzed . | . . . . . . . . . . . . . . . . . . Part Schematics Acquired . | . . . . . . . . . . . . . . . . . . Parts Damaged . | . . . . . . . . . . . . . . . . . . Bothacking | -11 -10 -9 -8 -8 -8 -7 -7 -7 -7 -6 -6 -6 -6 -5 -4 -3 -3 ------------ Run | Yrd Mat Mat Mat Gar Mat Fac Gar Fac Gar Fac Gar Fac DSF Fac Fac Res Gar Used RIF Installer 6 | . . . . 1 . . 2 . 1 . 1 . . . . . 1 Code Merge 1 | . . . . . . . . . . . . . . . . . 1 Threat Obfuscator 1 | . . . . . . . . . 1 . . . . . . . . Zone Cloak 1 | . . . . . . . 1 . . . . . . . . . . Patrol Navigation 1 | . . . . . . . . . . . 1 . . . . . . Autooverride 1 | . . . . . . . 1 . . . . . . . . . . Robots Hacked 28 | . . . . . . 1 4 1 . . 11 . . 11 . . . Non-combat . | . . . . . . . . . . . . . . . . . . Combat 28 | . . . . . . 1 4 1 . . 11 . . 11 . . . Autooverrided 9 | . . . . . . . . . . . 3 . . 6 . . . Robot Hacks Applied 20 | . . . . . . 1 4 1 . . 8 . . 6 . . . spike_heat 1 | . . . . . . . . . . . . . . 1 . . . amplify_resonance 1 | . . . . . . . . . . . . . . 1 . . . streamctrl_high 1 | . . . . . . . . . . . . . . 1 . . . formatsys_high 17 | . . . . . . 1 4 1 . . 8 . . 3 . . . Relay Couplers Released 71 | . . . . 19 . . 7 . 27 . 18 . . . . . . Machine Destruction 67 | . . . . 19 . . 7 . 23 . 18 . . . . . . Programmers 4 | . . . . . . . . . 4 . . . . . . . . Attached 16 | . . . . . . 1 4 1 . . 6 . . 4 . . . Fabnet Peak Effective % . | . . . . . . . . . . . . . . . . . . Robots Rewired 18 | . . . . 6 . . 8 . 3 . 1 . . . . . . Allies Hacked 1 | . . . . 1 . . . . . . . . . . . . . Hacks Repelled . | . . . . . . . . . . . . . . . . . . Allies | -11 -10 -9 -8 -8 -8 -7 -7 -7 -7 -6 -6 -6 -6 -5 -4 -3 -3 -------- Run | Yrd Mat Mat Mat Gar Mat Fac Gar Fac Gar Fac Gar Fac DSF Fac Fac Res Gar Total Allies 47 | . . . . 6 . 4 12 1 3 . 12 . . 9 . . . Largest Group 8 | . . . . 6 6 5 8 7 4 1 7 3 3 2 . . . Highest-Rated Group 282 | . . . . 144 144 105 172 232 180 90 282 206 206 177 . . . Highest-Rated Ally 148 | . . . . 39 39 32 43 90 90 90 148 148 148 148 . . . Total Orders 24 | . . . . . . . 7 3 1 . 10 . 2 1 . . . STAY 15 | . . . . . . . 5 2 1 . 6 . 1 . . . . FOLLOW 8 | . . . . . . . 2 1 . . 3 . 1 1 . . . GUARD 1 | . . . . . . . . . . . 1 . . . . . . Ally Attacks 350 | . . . . . 50 21 25 30 20 5 66 . 37 96 . . . Total Damage 7629 | . . . . . 1036 447 601 628 479 143 1626 . 771 1898 . . . Kills 59 | . . . . . 12 6 5 5 2 1 7 . 6 15 . . . Allies Corrupted . | . . . . . . . . . . . . . . . . . . Allies Melted . | . . . . . . . . . . . . . . . . . . Intel | -11 -10 -9 -8 -8 -8 -7 -7 -7 -7 -6 -6 -6 -6 -5 -4 -3 -3 ------- Run | Yrd Mat Mat Mat Gar Mat Fac Gar Fac Gar Fac Gar Fac DSF Fac Fac Res Gar Robot Analysis Total . | . . . . . . . . . . . . . . . . . . Derelict Logs Recovered . | . . . . . . . . . . . . . . . . . . Drone Launches . | . . . . . . . . . . . . . . . . . . Drone Recoveries . | . . . . . . . . . . . . . . . . . . Exploration | -11 -10 -9 -8 -8 -8 -7 -7 -7 -7 -6 -6 -6 -6 -5 -4 -3 -3 ------------- Run | Yrd Mat Mat Mat Gar Mat Fac Gar Fac Gar Fac Gar Fac DSF Fac Fac Res Gar Turns Passed 16886 | 36 391 670 515 2602 691 1484 1465 1027 2278 419 2806 10 289 1319 373 479 32 Spaces Moved 8849 | 29 279 426 336 1338 261 800 651 635 1058 186 1255 7 155 558 315 497 63 Core 312 | 3 . . . . . . . . . . . . . 11 24 211 63 Treads 2592 | . . . . 733 260 . . . 283 112 609 7 155 433 . . . Legs 114 | . . . . . . . . . . . . . . 114 . . . Wheels 5709 | 26 279 426 336 605 1 800 651 635 775 74 646 . . . 291 164 . Hover 122 | . . . . . . . . . . . . . . . . 122 . Flight . | . . . . . . . . . . . . . . . . . . Fastest Speed 50 | 50 80 95 95 115 165 165 145 120 120 160 120 160 160 50 50 50 50 Average Speed 150 | 76 96 98 103 149 241 165 159 143 173 208 175 160 160 186 82 67 50 Slowest Speed 470 | 80 115 115 115 240 242 165 240 225 240 240 240 160 160 470 95 250 50 Overloaded Moves . | . . . . . . . . . . . . . . . . . . Propulsion Burnouts . | . . . . . . . . . . . . . . . . . . Robots Hopped . | . . . . . . . . . . . . . . . . . . Cave-ins Triggered . | . . . . . . . . . . . . . . . . . . Exploration Rate (%) 40 | 3 49 39 32 98 36 21 60 22 89 8 83 . 95 21 6 18 14 Regions Visited 17 Branch Regions . Pre-discovered Areas . | . . . . . . . . . . . . . . . . . . Known Exits Taken 6 | . . . 1 . . 1 . 1 . 1 . 1 . . . 1 . Unknown Exits Taken 6 | 1 1 1 . . 1 . . . . . . . . 1 1 . . Scrap Searched . | . . . . . . . . . . . . . . . . . . Spaces Dug 68 | . . . . 25 1 1 19 . 12 2 5 . . . 3 . . Terrain Destroyed 497 | . . 63 . 64 5 17 71 47 101 6 35 . 16 66 3 3 . Melee 34 | . . . . 17 1 . 2 . 7 2 5 . . . . . . Projectile 83 | . . . . 1 4 17 1 2 16 4 8 . 3 21 3 3 . AOE 380 | . . 63 . 46 . . 68 45 78 . 22 . 13 45 . . . Terrain Rammed . | . . . . . . . . . . . . . . . . . . Walls Destroyed . | . . . . . . . . . . . . . . . . . . Machines Disabled . | . . . . . . . . . . . . . . . . . . Actions | -11 -10 -9 -8 -8 -8 -7 -7 -7 -7 -6 -6 -6 -6 -5 -4 -3 -3 --------- Run | Yrd Mat Mat Mat Gar Mat Fac Gar Fac Gar Fac Gar Fac DSF Fac Fac Res Gar Total 11265 | 40 344 579 435 1683 305 923 921 701 1350 202 1701 6 185 797 407 623 63 Wait 666 | . 13 51 33 41 22 38 93 11 59 1 71 . 15 125 47 46 . Move 8835 | 28 278 425 336 1337 260 799 650 634 1057 186 1254 6 154 557 314 497 63 Hop . | . . . . . . . . . . . . . . . . . . Pick Up 140 | 7 7 10 10 24 . 11 13 3 15 . 29 . . 7 3 1 . Fast Attach 116 | 5 4 3 5 14 3 9 3 4 7 . 11 . 2 19 10 17 . Attach 83 | . 1 4 3 10 . 3 9 3 5 3 14 . 1 21 4 2 . Detach 48 | . . 1 4 5 2 4 2 3 5 1 3 . 1 13 1 3 . Swap 130 | . 2 12 3 31 8 7 20 6 10 . 25 . . 4 2 . . Drop 152 | . 9 17 6 27 2 19 5 5 20 . 26 . 2 4 5 5 . Fire 770 | . 30 56 35 95 7 30 74 30 87 7 191 . 10 46 21 51 . Melee 123 | . . . . 56 1 3 31 2 14 4 12 . . . . . . Ram 1 | . . . . . . . . . . . . . . . . 1 . Kick . | . . . . . . . . . . . . . . . . . . Crush 1 | . . . . . . . . . . . . . . 1 . . . Escape Stasis 171 | . . . . 43 . . 21 . 43 . 64 . . . . . . Rewire 29 | . . . . . . . . . 28 . 1 . . . . . . Trap . | . . . . . . . . . . . . . . . . . . Miscellaneous . | . . . . . . . . . . . . . . . . . . Route ------- -11/Scrapyard -10/Materials (discovered 3 exits: *Mat / [*Min x2]) -9/Materials -8/Materials (discovered 2 exits: [*Sto] / Gar) -8/Garrison (discovered 3 exits: *Mat x3) -8/Materials -7/Factory -7/Garrison (discovered 4 exits: *Fac x4) -7/Factory (discovered 2 exits: *Fac / Gar) -7/Garrison (discovered 3 exits: *Fac x3) -6/Factory -6/Garrison (discovered 3 exits: *Fac x3) -6/Factory -6/DSF -5/Factory -4/Factory -3/Research -3/Garrison History --------- Turn | Location | Event 13 | -11/Scrapyard | Discovered new exit (range 15) 37 | -11/Scrapyard | Entered Materials 139 | -10/Materials | Discovered new exit (range 12) 327 | -10/Materials | Build established: Mutant 382 | -10/Materials | Discovered new exit (range 4) 396 | -10/Materials | Discovered new exit (range 11) 428 | -10/Materials | Entered another Materials area 428 | -9/Materials | Evolved 2 slots: Propulsion x2 858 | -9/Materials | Discovered new exit (range 5) 1098 | -9/Materials | Entered another Materials area 1098 | -8/Materials | Evolved 2 slots: Utility x2 1479 | -8/Materials | Discovered new exit (range 13) 1613 | -8/Materials | Identified exit to Garrison 1613 | -8/Materials | Entered Garrison 1696 | -8/Garrison | Triggered checkpoint 1774 | -8/Garrison | Triggered checkpoint 1794 | -8/Garrison | Garrison Relay disabled 1982 | -8/Garrison | Learned Materials security intel 2046 | -8/Garrison | Triggered checkpoint 2108 | -8/Garrison | Garrison Relay disabled 2148 | -8/Garrison | Triggered checkpoint 2280 | -8/Garrison | Triggered checkpoint 2347 | -8/Garrison | Garrison Relay disabled 2455 | -8/Garrison | Discovered new exit (range 15) 2486 | -8/Garrison | Triggered checkpoint 2544 | -8/Garrison | Triggered checkpoint 2658 | -8/Garrison | Garrison Relay disabled 2670 | -8/Garrison | Triggered checkpoint 2738 | -8/Garrison | Lost 9 parts (1p4n2u2w) 2874 | -8/Garrison | Discovered new exit (range 10) 2940 | -8/Garrison | Triggered checkpoint 3016 | -8/Garrison | Discovered new exit (range 8) 3076 | -8/Garrison | Triggered checkpoint 3089 | -8/Garrison | Garrison Relay disabled 3323 | -8/Garrison | Core integrity fell below 50% 4014 | -8/Garrison | Build established: Commander-Mutant 4119 | -8/Garrison | Installed Relay Interface Framework 4215 | -8/Garrison | Entered Materials 4215 | -8/Materials | Accompanied by 6 allies 4411 | -8/Materials | Build established: Bothacker-Mutant 4694 | -8/Materials | Discovered new exit (range 15) 4904 | -8/Materials | System corruption reached 10% 4906 | -8/Materials | Entered Factory 4906 | -7/Factory | Accompanied by 2 allies 4906 | -7/Factory | Evolved 2 slots: Utility x1, Weapon x1 5213 | -7/Factory | Fabricated L-31 Rogue? 5447 | -7/Factory | Build established: Bothacker-Tank 5819 | -7/Factory | P-60 Hacker assimilated allied QA-0DY(b) 6380 | -7/Factory | Identified exit to Garrison 6390 | -7/Factory | Entered Garrison 6390 | -7/Garrison | Accompanied by 1 ally 6422 | -7/Garrison | Expanded RIF knowledge: Zone Cloak 6454 | -7/Garrison | Triggered checkpoint 6480 | -7/Garrison | Garrison Relay disabled 6601 | -7/Garrison | Triggered checkpoint 6662 | -7/Garrison | Triggered checkpoint 6731 | -7/Garrison | Destroyed 7 combat bots 6828 | -7/Garrison | Discovered new exit (range 10) 6870 | -7/Garrison | Triggered checkpoint 6980 | -7/Garrison | Discovered new exit (range 66) 6980 | -7/Garrison | Discovered new exit (range 44) 6980 | -7/Garrison | Discovered new exit (range 25) 6980 | -7/Garrison | Discovered new exit (range 70) 6990 | -7/Garrison | Garrison Relay disabled 7065 | -7/Garrison | Triggered checkpoint 7140 | -7/Garrison | Triggered checkpoint 7376 | -7/Garrison | Triggered checkpoint 7473 | -7/Garrison | Triggered checkpoint 7616 | -7/Garrison | Expanded RIF knowledge: Autooverride 7855 | -7/Garrison | Entered Factory 7855 | -7/Factory | Accompanied by 7 allies 7902 | -7/Factory | Discovered new exit (range 2) 8247 | -7/Factory | Lost 3 allies 8255 | -7/Factory | First assault squad dispatched 8752 | -7/Factory | Core integrity fell below 50% 8874 | -7/Factory | Identified exit to Garrison 8882 | -7/Factory | Entered Garrison 8882 | -7/Garrison | Accompanied by 1 ally 8938 | -7/Garrison | Lost 3 parts (1p1u1w) 9001 | -7/Garrison | Spotted B-75 Beast 9025 | -7/Garrison | Triggered checkpoint 9042 | -7/Garrison | Triggered checkpoint 9102 | -7/Garrison | Triggered checkpoint 9133 | -7/Garrison | Discovered new exit (range 10) 9189 | -7/Garrison | Garrison Relay disabled 9234 | -7/Garrison | Triggered checkpoint 9446 | -7/Garrison | Triggered checkpoint 9523 | -7/Garrison | Garrison Relay disabled 9567 | -7/Garrison | Discovered new exit (range 12) 9639 | -7/Garrison | Triggered checkpoint 9730 | -7/Garrison | Discovered new exit (range 10) 9804 | -7/Garrison | Build established: Bothacker-Mutant 9846 | -7/Garrison | Triggered checkpoint 9872 | -7/Garrison | Garrison Relay disabled 10017 | -7/Garrison | P-60 Hacker assimilated allied I6-XXL(h) 10023 | -7/Garrison | P-60 Hacker assimilated allied FI-PY0(g) 10633 | -7/Garrison | Phase Generator disabled 10797 | -7/Garrison | Triggered checkpoint 10838 | -7/Garrison | Garrison Relay disabled 10843 | -7/Garrison | Core integrity fell below 20% 10925 | -7/Garrison | Garrison Relay disabled 10942 | -7/Garrison | Triggered checkpoint 10955 | -7/Garrison | Expanded RIF knowledge: Threat Obfuscation 11160 | -7/Garrison | Entered Factory 11160 | -6/Factory | Accompanied by 1 ally 11160 | -6/Factory | Evolved 2 slots: Utility x2 11510 | -6/Factory | First assault squad dispatched 11579 | -6/Factory | Identified exit to Garrison 11579 | -6/Factory | Entered Garrison 11606 | -6/Garrison | Lost 3 parts (3u) 11626 | -6/Garrison | Triggered checkpoint 11706 | -6/Garrison | Garrison Relay disabled 11771 | -6/Garrison | Expanded RIF knowledge: Patrol Navigation 12012 | -6/Garrison | Triggered checkpoint 12043 | -6/Garrison | Build established: Botlord-Mutant 12315 | -6/Garrison | Garrison Relay disabled 12346 | -6/Garrison | Triggered checkpoint 12522 | -6/Garrison | System corruption reached 10% 12554 | -6/Garrison | Discovered new exit (range 3) 12646 | -6/Garrison | Triggered checkpoint 12651 | -6/Garrison | System corruption reached 30% 12700 | -6/Garrison | Lost 5 parts (1p2n2u) 12738 | -6/Garrison | Spotted B-86 Titan 12741 | -6/Garrison | Spotted B-75 Beast 12760 | -6/Garrison | Rewired B-90 Cyclops 12772 | -6/Garrison | Allies destroyed B-86 Titan 12939 | -6/Garrison | Build established: Botlord-Gunner 12994 | -6/Garrison | Discovered new exit (range 11) 13018 | -6/Garrison | Triggered checkpoint 13075 | -6/Garrison | Garrison Relay disabled 13193 | -6/Garrison | Triggered checkpoint 13321 | -6/Garrison | Build established: Botlord-Mutant 13328 | -6/Garrison | Triggered checkpoint 13349 | -6/Garrison | Garrison Relay disabled 13392 | -6/Garrison | Discovered new exit (range 11) 13476 | -6/Garrison | Triggered checkpoint 13821 | -6/Garrison | Build established: Botlord-Gunner 14385 | -6/Garrison | Entered Factory 14385 | -6/Factory | Accompanied by 3 allies 14395 | -6/Factory | Identified exit to DSF 14395 | -6/Factory | Entered DSF 14395 | -6/DSF | Accompanied by 3 allies 14428 | -6/DSF | Additional patrols routed to DSF 14489 | -6/DSF | Discovered new exit (range 14) 14540 | -6/DSF | Build established: Botlord-Mutant 14613 | -6/DSF | Sterilization system engaged 14633 | -6/DSF | Ambient heat levels rising (+10) 14648 | -6/DSF | Ambient heat levels rising (+10) 14663 | -6/DSF | Ambient heat levels rising (+10) 14678 | -6/DSF | Ambient heat levels rising (+10) 14684 | -6/DSF | Entered Factory 14684 | -5/Factory | Accompanied by 2 allies 14684 | -5/Factory | Evolved 2 slots: Power x1, Utility x1 14982 | -5/Factory | Build established: Botlord-Gunner 15115 | -5/Factory | Destroyed 7 combat bots 15402 | -5/Factory | Cargo convoy interrupted 15449 | -5/Factory | Garrison activated, responded to threat 15474 | -5/Factory | Destroyed 9 combat bots 15484 | -5/Factory | Lost 9 parts (2p2n3u2w) 15584 | -5/Factory | First assault squad dispatched 15693 | -5/Factory | Lost 5 parts (2p1n2u) 15760 | -5/Factory | Core integrity fell below 50% 15804 | -5/Factory | Lost 6 parts (1p2n2u1w) 15837 | -5/Factory | Found Prototype Device 15837 | -5/Factory | Identified Active Sensor Suite 15993 | -5/Factory | Lost 3 allies 15997 | -5/Factory | Released all parts (7) 16000 | -5/Factory | Discovered new exit (range 8) 16003 | -5/Factory | Entered another Factory area 16003 | -4/Factory | Evolved 2 slots: Utility x2 16016 | -4/Factory | Discovered new exit (range 5) 16026 | -4/Factory | Lost 4 parts (2n2u) 16294 | -4/Factory | Build established: Scavenger-Mutant 16376 | -4/Factory | Entered Research 16376 | -3/Research | Evolved 2 slots: Propulsion x2 16499 | -3/Research | Found Quantum Capacitor 16613 | -3/Research | System corruption reached 10% 16661 | -3/Research | Lost 13 parts (2p4n6u1w) 16722 | -3/Research | Spotted B-86 Titan 16775 | -3/Research | Lost 5 parts (3n1u1w) 16784 | -3/Research | Core integrity fell below 50% 16789 | -3/Research | Found Enh. Force Lance 16801 | -3/Research | Spotted B-86 Titan 16819 | -3/Research | Core integrity fell below 20% 16855 | -3/Research | Identified exit to Garrison 16855 | -3/Research | Entered Garrison 16863 | -3/Garrison | Expanded RIF knowledge: Code Merge 16887 | -3/Garrison | Destroyed by H-77 Assassin with Coil Gun Last Messages --------------- 16845_ Triggered Segregator Trap. 16845_ Arcs of energy rise from the floor. 16845_ Centrium Wheel blown off. 16845_ Imp. Hacking Suite blown off. 16845_ Enh. Optical Array blown off. 16845_ Imp. Hacking Suite blown off. 16855_ Connecting with Garrison Access... 16855_ Current location identified: Research >>Unlock Access door unlocked. 16855_ EXIT=UNLOCKED: GARRISON LOCATION=GARRISON GOAL=ESCAPE 16855_ Detecting nearby RIF Installer. 16857_ System corrupted: Matter fused (-10). Initiating installation procedure... 16863_ Expanded RIF knowledge: Code Merge. 16877_ R #KB4WK6POQ,:YX|X/YTK8J5JF HN9I5FI 16886_ Slug penetrates Wall. 16887_ Penetrated by Slug. Map ----- +----------------------------------------------------+ | ?????????????????????????????????????????????????? | | ?????????????????????????????????????????????????? | | ?????????????????????????????????????????????????? | | ?????????????????????????????????????????????????? | | ?????????????????????????????????????????????????? | | ?????????????????????????????????????????????????? | | ?????????????????????????????????????????????????? | | ?????????????????????????????????????????????????? | | ?????????????????????????????????????????????????? | | ?????????????????????????????????????????????????? | | ????????????????????????? h ?????????????????????? | | ????????????????????????? ????????????????????? | | ????????????????????????? ????????????????????? | | ????????????????????????? ????????????????????? | | ?????????????????????????h ????????????????????? | | ????????????????????????? #????????????????????? | | ????????????????????????? ##???????????????????? | | ????????????????????????# ???????????????????? | | ????????????????????????# ????????????????????? | | ????????????????????????# ????????????????????? | | ????????????????????????# h#????????????????????? | | ????????????????????????# #????????????????????? | | ????????????????????????# #????????????????????? | | ??????????????????????### #????????????????????? | | ??????????????????????? ; #????????????????????? | | ????????????????????????#@ #????????????????????? | | ????????????????????????# #????????????????????? | | ???###################### #????????????????????? | | ???# ^ #????????????????????? | | ???# #????????????????????? | | ???# #????????????????????? | | ???# ######################????????????????????? | | ???# #?????????????????????????????????????????? | | ???# #?????????????????????????????????????????? | | ???# #?????????????????????????????????????????? | | ???# #?????????????????????????????????????????? | | ???# #?????????????????????????????????????????? | | ???# #?????????????????????????????????????????? | | ???# #?????????????????????????????????????????? | | ???# #?????????????????????????????????????????? | | ???# #?????????????????????????????????????????? | | ???# #?????????????????????????????????????????? | | ???# #?????????????????????????????????????????? | | ### #?????????????????????????????????????????? | | #?????????????????????????????????????????? | | #?????????????????????????????????????????? | | #### #?????????????????????????????????????????? | | ???# #?????????????????????????????????????????? | | ???# #?????????????????????????????????????????? | | #### #?????????????????????????????????????????? | +----------------------------------------------------+ Best States ------------- Heat Dissipation 102 Energy Generation 45 Energy Capacity 380 Matter Stores 300 Matter Capacity 300 Sight Range 22 Robot Scan Range 20 Terrain Scan Range 16 Terrain Scan Density 10 Jamming Range 14 Power Amplification 30 Armor Coverage 750 Resistance: KI 30 Weapon Cycling 20 Evasion (%) 53 Targeting Accuracy 8 Recoil Reduction 4 Energy Filtering 30 Offensive Hacking 36 Relay Coupler Types 3 Relay Coupler Value 69 Item Schematics ----------------- None Robot Schematics ------------------ None Fabricated ------------ L-31 Rogue | x3 | -7/Factory | Preloaded Alien Tech Used ----------------- None Achievements -------------- None Challenges ------------ None Game ------ Seed GammaPulseLoader Manual? 0 Play Time 02:13:52 Cumulative 392.5 hours Start 2023.12.29 @ 22:53:55 End 2023.12.31 @ 12:57:03 Sessions 5 Manual Loads 0 Difficulty Rogue Special Mode None Game No. 272 Rogue 272 Adventurer 0 Explorer 0 Win Type - Total 32 Types 28/0/3/1/0/0/0/0/0 Lore% 71 Gallery% 86 Achievement% 70 Wizard Run 0 Options --------- ASCII 0 Keyboard 1 Movement Numpad Keybinds 0 Fullscreen 2 Font 24/Smallcaps Map View 76x50 Zoom Use 0% Tactical HUD 1 Map Filters NONE Filters NONE Steam 1 RUN: f06b98f5-1cbb-4d48-ae5c-441e53358ed7